[Event "Karel Janecek Open 2024"]
[Site "Prague"]
[Date "2024.03.05"]
[Round "7.11"]
[White "Quintiliano, Renato R."]
[Black "Rohit S"]
[Result "1/2-1/2"]
[ECO "E04"]
[WhiteElo "2493"]
[BlackElo "2174"]
[Annotator "TA"]
[PlyCount "120"]
[EventDate "2024.02.22"]
[EventType "swiss"]
[EventCountry "CZE"]
[SourceTitle "playchess.com"]
[Source "ChessBase"]
[SourceQuality "1"]
[TimeControl "40/5400+30:1800+30"]

{[%evp 18,120,4,-12,18,2,13,0,0,0,0,-14,-4,0,16,-31,0,-19,32,27,66,50,62,45,47,12,17,17,19,16,131,123,145,151,152,106,97,96,97,99,96,99,108,107,107,95,97,102,97,90,93,87,95,87,98,97,85,40,49,49,49,17,49,49,49,34,34,34,30,30,30,23,23,23,23,23,23,23,27,23,34,34,34,34,34,34,34,23,42,23,42,35,35,23,23,21,23,0,0,0,0,0,0,0,23]} 1. d4 {[%emt 0:01:27]} Nf6 {[%emt 0:00:07]} 2. c4 {[%emt 0:00:07]} e6 {[%emt 0:00:05]} 3. g3 {[%emt 0:00:06]} d5 {[%emt 0:00:15]} 4. Bg2 {[%emt 0:00:07]} dxc4 {[%emt 0:00:54]} 5. Nf3 {[%emt 0:00:10]} c6 {[%emt 0:00:08]} 6. O-O {[%emt 0:00:35]} b5 {[%emt 0:00:59]} 7. Ne5 {[%emt 0:00:09] E04: Open Catalan: 5 Nf3.} Bb7 {[%emt 0:00:42]} 8. a4 {[%emt 0:04:35]} a6 {[%emt 0:00:27]} 9. b3 {[%emt 0:00:24]} cxb3 {[%emt 0:00:06]} 10. Bb2 {[%emt 0:00:04]} Nd5 {[%emt 0:11:05]} (10... Nbd7 {seems wilder.} 11. axb5 axb5 12. Bxc6 Rxa1 13. Bxb7 Ra7) 11. Qxb3 {[%emt 0:06:38]} Nd7 {[%emt 0:10:55]} 12. Nd2 {[%emt 0:04:25]} Nxe5 {[%emt 0:00:53]} 13. dxe5 {[%emt 0:00:08]} Be7 {[%emt 0:00:20]} 14. Rfc1 {[%emt 0:01:46]} O-O {[%emt 0:01:08]} 15. Ne4 {[%emt 0:00:37]} a5 $146 {[%emt 0:12:35]} ({Predecessor:} 15... Qb6 16. Nd6 Bxd6 17. exd6 c5 18. e4 c4 19. Qf3 c3 20. Bxc3 Nxc3 21. Qxc3 Qxd6 {0-1 Kethro,M (2122)-Bjelobrk,I (2403) Doeberl Cup 59th 2022 (2)}) 16. e3 {[%emt 0:10:16]} (16. axb5 $11 {might be stronger.} Qb6 17. Qd3 (17. Nd6 Bxd6 18. exd6 cxb5 $11)) 16... Qb8 {[%emt 0:13:21]} 17. Bd4 {[%emt 0:10:10]} (17. axb5 $5 cxb5 18. Qxb5 $17) 17... bxa4 {[%emt 0:07:24]} (17... b4 $11) 18. Qxa4 {[%emt 0:01:31]} Ba6 {[%emt 0:09:27]} 19. Qxa5 {[%emt 0:18:25]} (19. Qxc6 Rc8 20. Qa4 Rxc1+ 21. Rxc1 Bb5 $11) (19. Rxc6 $2 Bb5 20. Qd1 Bxc6 $19) 19... Bb5 {[%emt 0:02:24]} 20. Qd2 {[%emt 0:01:43]} Rxa1 {[%emt 0:00:11]} 21. Bxa1 {[%emt 0:03:27]} Rd8 {[%emt 0:03:39]} 22. Bd4 {[%emt 0:06:39]} Nb4 {[%emt 0:03:04]} 23. f4 {[%emt 0:18:43]} Nd3 {[%emt 0:01:37] [#]} (23... Bf8 $11) 24. Rb1 $1 $16 {[%emt 0:00:34]} c5 {[%emt 0:02:22] [#]} 25. Nxc5 $1 {[%emt 0:01:32]} Nxc5 {[%emt 0:10:28]} (25... Bxc5 $2 26. Bxc5 Nxf4 (26... Nxc5 $2 27. Rxb5 $18) 27. Rxb5 $18) 26. Bf1 {[%emt 0:00:35]} ({White should play} 26. Qa5 Nd3 (26... Rxd4 $2 27. exd4 Qc8 28. Qa8 $18) 27. Qxb5 (27. Rxb5 Qc8 $16) 27... Qxb5 28. Rxb5) 26... Ne4 $16 {[%emt 0:01:17]} 27. Qc2 {[%emt 0:01:54]} Ba4 {[%emt 0:00:48]} ({Wrong is} 27... Rxd4 $2 28. exd4 Nd6 29. exd6 Qxd6 30. Bxb5 $18 (30. Rxb5 Qxd4+ 31. Qf2 Qd8 $18)) 28. Qxe4 {[%emt 0:00:09]} (28. Qxa4 $2 {is the wrong capture.} Qxb1 29. Qc4 g6 $19 (29... Nd2 $2 30. Qe2 $19)) 28... Qc8 {[%emt 0:00:34]} 29. Qb7 {[%emt 0:02:37]} Bf8 {[%emt 0:02:24]} 30. Qxc8 {[%emt 0:01:10]} Rxc8 {[%emt 0:00:01]} 31. g4 {[%emt 0:00:40]} Bc2 {[%emt 0:01:24]} 32. Rc1 {[%emt 0:00:24]} Ba3 {[%emt 0:00:02]} 33. Ra1 {[%emt 0:00:08]} Be7 {[%emt 0:00:40]} 34. Ra7 {[%emt 0:01:36]} Kf8 {[%emt 0:00:45]} 35. Ba6 {[%emt 0:00:08]} Rb8 {[%emt 0:00:10]} 36. Bb7 {[%emt 0:00:09]} g5 {[%emt 0:03:10]} 37. Bb6 {[%emt 0:01:05]} Be4 {[%emt 0:01:12]} 38. Bxe4 {[%emt 0:00:50]} Rxb6 {[%emt 0:00:01]} 39. f5 {[%emt 0:01:27]} ({Don't play} 39. Bxh7 Bc5 $11) 39... f6 {[%emt 0:00:55]} 40. exf6 {[%emt 0:01:00]} (40. Ra5 {simplifies} exf5 41. exf6 Bxf6 42. Rxf5 Kg7 43. Bd5) 40... Bc5 $1 {[%emt 0:01:25]} 41. Rxh7 {[%emt 0:08:13]} Bxe3+ {[%emt 0:01:03]} 42. Kg2 {[%emt 0:03:26]} exf5 {[%emt 0:00:07]} 43. gxf5 {[%emt 0:00:26]} Rxf6 {[%emt 0:00:09]} 44. Kf3 {[%emt 0:00:18]} Bd2 {[%emt 0:05:06]} 45. Kg4 {[%emt 0:02:06]} Rd6 $1 {[%emt 0:01:57]} 46. h3 {[%emt 0:00:59]} Rd4 {[%emt 0:00:42]} 47. Kf3 {[%emt 0:00:06]} Rd6 {[%emt 0:00:15]} 48. Rb7 {[%emt 0:02:14]} Rh6 {[%emt 0:01:15]} 49. Kg2 {[%emt 0:00:38]} Rh4 {[%emt 0:03:01]} 50. Bf3 {[%emt 0:00:41]} Rb4 {[%emt 0:01:20]} 51. Rd7 {[%emt 0:00:19]} Bc3 {[%emt 0:00:37]} 52. Kf2 {[%emt 0:02:36]} Be5 {[%emt 0:03:14]} 53. Bg4 {[%emt 0:00:32]} Rb3 {[%emt 0:00:47]} 54. Rd5 {[%emt 0:00:15]} Bf6 {[%emt 0:01:07]} 55. Bf3 {[%emt 0:00:41]} Ke7 {[%emt 0:00:33]} 56. Ra5 {[%emt 0:00:30]} Bd4+ {[%emt 0:00:45]} 57. Kg3 {[%emt 0:00:31]} Kf6 {[%emt 0:00:58]} 58. Ra4 {[%emt 0:02:58]} Be5+ {[%emt 0:00:23]} 59. Kg4 {[%emt 0:00:33]} Bd6 {[%emt 0:00:05]} 60. Re4 {[%emt 0:01:00]} Rb4 {[%emt 0:00:06]} 1/2-1/2

[Event "Karel Janecek Open 2024"]
[Site "Prague"]
[Date "2024.03.05"]
[Round "7.12"]
[White "Tan, Jun Ying"]
[Black "Barbosa, Evandro Amorim"]
[Result "1/2-1/2"]
[ECO "E24"]
[WhiteElo "2310"]
[BlackElo "2491"]
[Annotator "TA"]
[PlyCount "89"]
[EventDate "2024.02.22"]
[EventType "swiss"]
[EventCountry "CZE"]
[SourceTitle "playchess.com"]
[Source "ChessBase"]
[SourceQuality "1"]
[TimeControl "40/5400+30:1800+30"]

{[%evp 9,89,0,3,-18,-30,-30,16,19,25,27,37,35,27,25,60,32,31,41,37,0,0,-25,0,-2,0,-6,16,-4,14,-8,0,0,0,0,0,-19,-20,-89,-67,-86,0,-57,-41,-52,-39,-57,-57,-63,-70,-79,-20,-243,-221,-240,-168,-135,-122,-77,-74,-894,-876,-886,-552,-435,0,0,0,0,0,0,0,0,0,0,0,0,0,0,0,0,0,0]} 1. d4 {[%emt 0:00:02]} Nf6 {[%emt 0:00:59]} 2. c4 {[%emt 0:00:03]} e6 {[%emt 0:00:38]} 3. Nc3 {[%emt 0:00:51]} Bb4 {[%emt 0:00:21]} 4. a3 {[%emt 0:03:34]} Bxc3+ {[%emt 0:00:14]} 5. bxc3 {[%emt 0:00:02]} Nc6 {[%emt 0:04:19]} 6. f3 {[%emt 0:00:33]} b6 {[%emt 0:00:52]} 7. e4 {[%emt 0:00:26]} e5 {[%emt 0:03:20]} (7... Na5 $142) 8. Ne2 $11 {[%emt 0:06:47][%cal Bg1e2,Be2g3,Bg3f5][%mdl 32]} d6 {[%emt 0:14:42]} 9. Ng3 {[%emt 0:00:42]} Na5 {[%emt 0:03:02]} 10. Bd3 {[%emt 0:01:09]} h5 {[%emt 0:01:35]} 11. h4 {[%emt 0:05:50]} Qd7 {[%emt 0:05:22]} 12. Bg5 {[%emt 0:06:27]} Ba6 {[%emt 0:03:12]} 13. Nf5 {[%emt 0:04:35]} Rg8 {[%emt 0:02:12]} 14. Bxf6 {[%emt 0:15:02]} gxf6 {[%emt 0:00:08]} 15. O-O {[%emt 0:00:26]} O-O-O {[%emt 0:04:00]} 16. a4 {[%emt 0:03:01]} Kb8 {[%emt 0:01:11]} (16... Nxc4 $2 17. d5 $18) 17. Rf2 {[%emt 0:12:00]} Rde8 {[%emt 0:04:13]} (17... Nxc4 $2 {is the wrong capture.} 18. d5 $18) 18. Bf1 {[%emt 0:05:56]} Bc8 {[%emt 0:02:48]} 19. Rd2 {[%emt 0:06:03][%cal Oc4c5]} Qd8 {[%emt 0:07:46]} 20. c5 {[%emt 0:00:43]} Bxf5 {[%emt 0:00:08]} 21. exf5 {[%emt 0:00:14]} dxc5 {[%emt 0:00:27]} 22. dxe5 {[%emt 0:09:20]} Qc8 {[%emt 0:05:05]} 23. Bd3 {[%emt 0:06:40]} (23. e6 $11 {remains equal.} fxe6 24. Bb5) 23... fxe5 {[%emt 0:02:54]} 24. Be4 {[%emt 0:00:28]} Rd8 {[%emt 0:00:14] Against Rd7} (24... Nc4 $1 $17 {[%cal Rc4d2]} 25. Rda2 c6) 25. Rxd8 {[%emt 0:02:03]} (25. Qe2 $11) 25... Rxd8 $15 {[%emt 0:00:08]} 26. Qe2 {[%emt 0:00:29]} Qd7 {[%emt 0:01:27] Repels Rd1} 27. Qe3 {[%emt 0:03:51]} c4 {[%emt 0:07:33]} 28. Qg5 {[%emt 0:01:17][%cal Oe4c2]} Nb3 {[%emt 0:01:51]} 29. Rf1 {[%emt 0:01:01] [#]} Nc5 {[%emt 0:03:39]} (29... a5 $1 $17) 30. Qxh5 $2 {[%emt 0:00:37]} (30. a5 $1 $11 {and White stays safe.}) 30... Nxa4 $19 {[%emt 0:00:39]} (30... Qxa4 31. Qxf7 Nxe4 32. fxe4 $18) 31. Rc1 {[%emt 0:02:35]} Nxc3 {[%emt 0:09:56]} 32. Rxc3 {[%emt 0:00:00]} Qd4+ {[%emt 0:00:07]} 33. Kh2 {[%emt 0:00:01]} Qxc3 $17 {[%emt 0:00:10][%mdl 4096] Endgame. KQR-KQB} 34. Qh6 $2 {[%emt 0:01:49][%mdl 8192]} (34. Qxf7 $17 Qd4 35. h5) 34... Qe1 $19 {[%emt 0:00:32] ...c3 is the strong threat.} 35. Qf6 {[%emt 0:00:17]} Rg8 {[%emt 0:00:45] ( -> ...Qg3+)} 36. g4 {[%emt 0:00:43][%cal Oh2h3] [#]} Qf2+ $2 {[%emt 0:04:51]} (36... Kc8 $1 $19 {And now ...Rd8 would win.} 37. Qh6 c3) 37. Kh3 $11 {[%emt 0:00:04] The position is equal.} Qf1+ {[%emt 0:00:12]} 38. Kg3 {[%emt 0:00:37]} Qg1+ {[%emt 0:00:58]} 39. Kh3 {[%emt 0:00:01]} Qf1+ {[%emt 0:00:53]} 40. Kg3 {[%emt 0:00:45]} Qg1+ {[%emt 0:00:21]} 41. Kh3 {[%emt 0:30:13]} Qc5 {[%emt 0:34:55] Hoping for ...Rf8.} 42. h5 {[%emt 0:00:00]} Qg1 {[%emt 0:00:00]} 43. Qc6 {[%emt 0:00:00][%csl Ge4][%cal Rc6a8]} Qh1+ {[%emt 0:00:00]} 44. Kg3 {[%emt 0:00:00][%csl Ge4][%cal Rc6b7] Chess con chili.} Qg1+ {[%emt 0:00:00]} ({Worse is} 44... Qxh5 45. Qb7#) 45. Kh3 {[%emt 0:00:00] And White is the lucky defender.   Weighted Error Value: White=0.34/Black=0.33.  Loses game:     	White=2     	---        Mistake:       	White=2     	Black=3      Inaccurate:     	White=2     	Black=1      OK:         	White=14    	Black=8      Best:        	White=3     	Black=4} 1/2-1/2

[Event "Karel Janecek Open 2024"]
[Site "Prague"]
[Date "2024.03.05"]
[Round "7.13"]
[White "Csonka, Balasz"]
[Black "Daakshin Arun"]
[Result "1-0"]
[ECO "E62"]
[WhiteElo "2480"]
[BlackElo "2309"]
[Annotator "RC"]
[PlyCount "99"]
[EventDate "2024.02.22"]
[EventType "swiss"]
[EventCountry "CZE"]
[SourceTitle "playchess.com"]
[Source "ChessBase"]
[SourceQuality "1"]
[TimeControl "40/5400+30:1800+30"]

1. d4 {[%emt 0:00:03]} Nf6 {[%emt 0:00:06]} 2. c4 {[%emt 0:00:06]} g6 {[%emt 0:00:08]} 3. g3 {[%emt 0:00:05]} Bg7 {[%emt 0:00:08]} 4. Bg2 {[%emt 0:00:08]} O-O {[%emt 0:00:18]} 5. Nc3 {[%emt 0:00:08]} d6 {[%emt 0:00:07]} 6. h3 {[%emt 0:00:11]} e5 {[%emt 0:02:02]} 7. Nf3 {[%emt 0:00:10]} Nc6 {[%emt 0:01:57]} 8. Be3 {[%emt 0:00:11]} exd4 {[%emt 0:04:41]} 9. Nxd4 {[%emt 0:00:10]} Nxd4 {[%emt 0:07:01]} 10. Bxd4 {[%emt 0:01:32]} Be6 {[%emt 0:09:11]} 11. b3 {[%emt 0:17:22]} c6 {[%emt 0:09:24]} 12. O-O {[%emt 0:01:02]} a5 {[%emt 0:03:17]} 13. Rc1 {[%emt 0:02:01]} Ra6 {[%emt 0:07:25]} 14. e4 {[%emt 0:11:11]} Qd7 {[%emt 0:05:31]} 15. Kh2 {[%emt 0:02:02]} b5 {[%emt 0:12:31]} 16. cxb5 {[%emt 0:02:39]} cxb5 {[%emt 0:00:08]} 17. Qd3 {[%emt 0:06:55]} a4 {[%emt 0:06:00]} 18. Nxb5 {[%emt 0:23:41]} axb3 {[%emt 0:01:35]} 19. Rc7 {[%emt 0:00:30]} Qd8 {[%emt 0:04:46]} 20. axb3 {[%emt 0:02:12]} Nd7 {[%emt 0:02:42]} 21. Bxg7 {[%emt 0:04:05]} Kxg7 {[%emt 0:00:10]} 22. Rc3 {[%emt 0:02:29]} Nc5 {[%emt 0:04:00]} 23. Qe3 {[%emt 0:02:55]} Qb6 {[%emt 0:03:50]} 24. Nd4 {[%emt 0:02:04]} Re8 {[%emt 0:04:18]} 25. Rd1 {[%emt 0:09:46]} Bc8 {[%emt 0:03:40]} 26. Nc2 {[%emt 0:02:23]} Bb7 {[%emt 0:02:23]} 27. f3 {[%emt 0:00:45]} Ne6 {[%emt 0:01:27]} 28. Qxb6 {[%emt 0:01:32]} Rxb6 {[%emt 0:00:01]} 29. Ne3 {[%emt 0:00:48]} Nc5 {[%emt 0:01:10]} 30. Nc4 {[%emt 0:00:27]} Rxb3 {[%emt 0:01:04]} 31. Rxb3 {[%emt 0:00:10]} Nxb3 {[%emt 0:00:05]} 32. Nxd6 {[%emt 0:02:13]} Rb8 {[%emt 0:02:32]} 33. Rb1 {[%emt 0:00:52]} Bc6 {[%emt 0:00:32]} 34. e5 {[%emt 0:01:49]} Bd5 {[%emt 0:01:02]} 35. f4 {[%emt 0:00:44]} Be6 {[%emt 0:00:03]} 36. g4 {[%emt 0:00:36]} f5 {[%emt 0:00:08]} 37. gxf5 {[%emt 0:02:11]} gxf5 {[%emt 0:00:05]} 38. Rb2 {[%emt 0:00:41]} Kg6 {[%emt 0:00:41]} 39. Bf3 {[%emt 0:00:37]} Rb4 {[%emt 0:01:18]} 40. Rg2+ {[%emt 0:00:27]} Kh6 {[%emt 0:00:12]} 41. Bd5 {[%emt 0:07:01]} Nc5 {[%emt 0:00:35]} 42. Bxe6 {[%emt 0:02:46]} Nxe6 {[%emt 0:00:02]} 43. Nxf5+ {[%emt 0:00:14]} Kh5 {[%emt 0:00:04]} 44. Ng3+ {[%emt 0:03:12]} Kh4 {[%emt 0:00:08]} 45. Ne2 {[%emt 0:01:39]} Rb2 {[%emt 0:03:17]} 46. f5 {[%emt 0:04:55]} Ng5 {[%emt 0:00:05]} 47. Ng1 {[%emt 0:00:17]} Rb3 {[%emt 0:03:09]} 48. Re2 {[%emt 0:01:43]} h5 {[%emt 0:00:39]} 49. e6 {[%emt 0:01:17]} Rg3 {[%emt 0:00:27]} 50. e7 {[%emt 0:01:07]} 1-0

[Event "Karel Janecek Open 2024"]
[Site "Prague"]
[Date "2024.03.05"]
[Round "7.14"]
[White "Chkhaidze, Nikoloz"]
[Black "Stoyanov, Tsvetan"]
[Result "0-1"]
[ECO "D08"]
[WhiteElo "2209"]
[BlackElo "2465"]
[Annotator "TA"]
[PlyCount "80"]
[EventDate "2024.02.22"]
[EventType "swiss"]
[EventCountry "CZE"]
[SourceTitle "playchess.com"]
[Source "ChessBase"]
[SourceQuality "1"]
[TimeControl "40/5400+30:1800+30"]

{[%evp 9,80,60,56,69,93,58,63,60,69,51,56,54,50,43,42,25,80,29,64,47,97,18,17,15,27,0,0,0,31,2,68,0,0,8,3,3,16,0,0,-127,-22,-10,-12,-16,-22,-14,-14,-302,-310,-281,-283,-649,-741,-1044,-1036,-1098,-1089,-1049,-1016,-999,-191,-224,0,-910,-908,-1018,-864,-832,-575,-569,-564,-1051,-1036]} 1. d4 {[%emt 0:00:20][%cal Bd2d4,Bd4e5][%mdl 32]} d5 {[%emt 0:00:45]} 2. c4 {[%emt 0:00:02]} e5 {[%emt 0:00:08]} 3. dxe5 {[%emt 0:01:15]} d4 {[%emt 0:00:06]} 4. Nf3 {[%emt 0:00:47]} Nc6 {[%emt 0:00:06]} 5. Nbd2 {[%emt 0:00:08]} Nge7 {[%emt 0:00:13]} 6. Nb3 {[%emt 0:00:04][%cal Rb3d4]} Ng6 {[%emt 0:00:19]} 7. Nfxd4 {[%emt 0:01:05]} Ngxe5 {[%emt 0:01:05]} 8. e3 {[%emt 0:00:12] Weiß steht etwas besser.} Bg4 {[%emt 0:01:08]} 9. Be2 {[%emt 0:05:19]} Bb4+ $1 {[%emt 0:02:05]} 10. Kf1 $1 {[%emt 0:12:44]} Bxe2+ {[%emt 0:03:35]} 11. Qxe2 {[%emt 0:00:48]} a5 {[%emt 0:03:18]} 12. Nxc6 {[%emt 0:11:39]} bxc6 {[%emt 0:20:00]} (12... Nxc6 $11 {bleibt in der Remisbreite.} 13. Nd4 Qd7) 13. a3 {[%emt 0:18:10]} ({Günstiger ist} 13. f4 $16 Nd7 14. a3) 13... Bd6 {[%emt 0:03:43]} 14. Nd4 {[%emt 0:01:22]} Rb8 {[%emt 0:07:12]} (14... Qf6 $14) 15. b3 {[%emt 0:06:44]} ({Vorzuziehen ist} 15. f4 $16 Qf6 16. g4) 15... c5 $11 {[%emt 0:07:16]} 16. Nb5 {[%emt 0:12:08]} c6 {[%emt 0:01:29]} 17. Nxd6+ {[%emt 0:00:40]} Qxd6 {[%emt 0:00:01]} 18. Qc2 {[%emt 0:07:33]} a4 {[%emt 0:13:11]} 19. bxa4 {[%emt 0:02:34]} Nxc4 {[%emt 0:04:35]} 20. Qe4+ {[%emt 0:01:39]} ({Besser ist} 20. Ke2 $1 $14 Qe6 21. Rd1) 20... Ne5 {[%emt 0:01:48]} 21. Ke2 {[%emt 0:01:40] Es drohte Qd1+} O-O $132 {[%emt 0:05:10][%mdl 2048] Schwarz hält sich nicht zurück} 22. Rd1 {[%emt 0:00:09]} Qe6 {[%emt 0:08:52]} 23. Qc2 {[%emt 0:02:45][%cal Oe2f1]} c4 {[%emt 0:04:46][%cal Oc4c3]} 24. Bb2 {[%emt 0:01:54]} (24. Kf1 $11) 24... Nd3 {[%emt 0:00:50]} (24... Qg6 $1 $17 {[%cal Rg6c2]} 25. Rd2 Qd3+ (25... Nd3 26. Bd4 $11) 26. Rxd3 (26. Qxd3 cxd3+ 27. Kd1 Nc4 $17) 26... cxd3+ 27. Kd2 dxc2 28. Bxe5 Ra8 29. Kxc2 Rxa4) 25. Bc3 {[%emt 0:00:11] Weiss ist schwach auf den weissen Feldern} f5 {[%emt 0:06:36] Weiss muss nun ...f4 beachten.} 26. Kf1 {[%emt 0:02:06]} f4 {[%emt 0:00:20]} 27. exf4 {[%emt 0:04:13]} Rxf4 {[%emt 0:00:02]} 28. Rd2 {[%emt 0:00:46][%mdl 8192] [#]} (28. f3 $11 {und Weiss muss sich keine Sorgen machen.}) 28... Rbf8 $1 $19 {[%emt 0:01:13]} 29. f3 {[%emt 0:01:27] [#]} Qg4 $1 {[%emt 0:01:17][%cal Of4f3] Und ...Rxf3+! würde nun gewinnen.} 30. Kg1 $2 {[%emt 0:02:03]} (30. Rf2 Qh5 31. Kg1) 30... Rxf3 {[%emt 0:00:10] ...Rf2 wäre nun fies.} 31. Qd1 {[%emt 0:00:27]} Qg5 {[%emt 0:00:59]} 32. Qe2 {[%emt 0:01:46]} Qc5+ {[%emt 0:01:18]} 33. Kh1 {[%emt 0:00:03]} Nf2+ {[%emt 0:00:31]} 34. Kg1 {[%emt 0:00:02]} Nh3+ $2 {[%emt 0:00:27]} (34... Rd3 35. Bb4 Qd4) 35. Kh1 {[%emt 0:00:02]} Nf2+ $2 {[%emt 0:00:00]} (35... Rxc3 36. gxh3 Qe3 (36... Rxa3 37. Rxa3 Qxa3 38. Qxc4+ Kh8 39. Rg2 $17) (36... Re3 $2 37. Qg2 $19) 37. Qxe3 Rxe3 38. Rc2 $11) (35... Re3 36. Qd1 Rxc3 37. gxh3 Rcf3 (37... Rxh3 $2 38. Rd8 $19)) 36. Kg1 {[%emt 0:00:13]} Rxc3 {[%emt 0:00:21] Schwarz steht klar auf Gewinn.} 37. Qe6+ {[%emt 0:02:53]} Kh8 {[%emt 0:00:01] ( -> ...Nd1+)} 38. Qd6 {[%emt 0:00:54]} Ne4+ {[%emt 0:02:27][%cal Bf2e4,Be4c5,Bc5b3][%mdl 32]} 39. Qxc5 {[%emt 0:00:02]} Nxc5 {[%emt 0:00:03]} 40. a5 {[%emt 0:00:07]} Nb3 {[%emt 0:00:19][%csl LRa1,LRa5,LRd2] Gewichteter Fehlerwert: Weiß=0.64/Schwarz=0.56.  Verlustzug:     	Weiß=1     	---        Fehler:       	Weiß=5     	Schwarz=4     Ungenau:       	Weiß=4     	Schwarz=2     OK:         	Weiß=9     	Schwarz=9     Bester:       	Weiß=3     	Schwarz=4     Stark:        	Weiß=1     	Schwarz=3} 0-1

[Event "Karel Janecek Open 2024"]
[Site "Prague"]
[Date "2024.03.05"]
[Round "7.15"]
[White "Mis, Mieszko"]
[Black "Zhao, Yuanhe"]
[Result "0-1"]
[ECO "B23"]
[WhiteElo "2301"]
[BlackElo "2461"]
[Annotator "RC"]
[PlyCount "86"]
[EventDate "2024.02.22"]
[EventType "swiss"]
[EventCountry "CZE"]
[SourceTitle "playchess.com"]
[Source "ChessBase"]
[SourceQuality "1"]
[TimeControl "40/5400+30:1800+30"]

1. e4 {[%emt 0:00:02]} c5 {[%emt 0:01:05]} 2. Nc3 {[%emt 0:00:13]} a6 {[%emt 0:02:42]} 3. g3 {[%emt 0:00:18]} b5 {[%emt 0:00:52]} 4. Bg2 {[%emt 0:00:18]} Bb7 {[%emt 0:00:10]} 5. d3 {[%emt 0:00:18]} Nf6 {[%emt 0:03:49]} 6. Nh3 {[%emt 0:01:56]} d6 {[%emt 0:15:11]} 7. O-O {[%emt 0:02:20]} e6 {[%emt 0:00:30]} 8. f4 {[%emt 0:01:50]} b4 {[%emt 0:00:08]} 9. Na4 {[%emt 0:04:04]} Be7 {[%emt 0:07:30]} 10. c3 {[%emt 0:09:45]} bxc3 {[%emt 0:08:00]} 11. bxc3 {[%emt 0:02:10]} O-O {[%emt 0:02:50]} 12. Nf2 {[%emt 0:10:59]} Qc7 {[%emt 0:06:48]} 13. Rb1 {[%emt 0:11:59]} Bc6 {[%emt 0:00:58]} 14. Nb6 {[%emt 0:06:05]} Ra7 {[%emt 0:00:15]} 15. Nc4 {[%emt 0:00:08]} d5 {[%emt 0:10:00]} 16. Ne5 {[%emt 0:02:04]} Ba8 {[%emt 0:00:11]} 17. Qe2 {[%emt 0:04:46]} Nc6 {[%emt 0:03:52]} 18. Nxc6 {[%emt 0:05:44]} Bxc6 {[%emt 0:00:06]} 19. e5 {[%emt 0:04:34]} Nd7 {[%emt 0:00:09]} 20. c4 {[%emt 0:00:15]} Rb7 {[%emt 0:03:50]} 21. Rxb7 {[%emt 0:02:19]} Qxb7 {[%emt 0:00:06]} 22. cxd5 {[%emt 0:01:35]} Bxd5 {[%emt 0:00:05]} 23. Bxd5 {[%emt 0:00:46]} Qxd5 {[%emt 0:00:06]} 24. Be3 {[%emt 0:00:08]} Rb8 {[%emt 0:00:28]} 25. Rc1 {[%emt 0:00:50]} Rb4 {[%emt 0:02:27]} 26. Ne4 {[%emt 0:07:05]} g6 {[%emt 0:01:10]} 27. Nc3 {[%emt 0:04:40]} Qb7 {[%emt 0:00:35]} 28. Rc2 {[%emt 0:01:39]} Nb6 {[%emt 0:04:21]} 29. Bf2 {[%emt 0:08:54]} h5 {[%emt 0:05:21]} 30. Ne4 {[%emt 0:00:37]} Nd5 {[%emt 0:06:52]} 31. h4 {[%emt 0:02:26]} Rb1+ {[%emt 0:01:57]} 32. Kh2 {[%emt 0:00:53]} Nb4 {[%emt 0:00:24]} 33. Rd2 {[%emt 0:00:56]} Kg7 {[%emt 0:03:13]} 34. a3 {[%emt 0:00:34]} Nd5 {[%emt 0:00:14]} 35. Rc2 {[%emt 0:00:31]} Qb3 {[%emt 0:00:33]} 36. Bxc5 {[%emt 0:01:10]} Bxc5 {[%emt 0:01:13]} 37. Nxc5 {[%emt 0:00:29]} Qxa3 {[%emt 0:00:42]} 38. f5 {[%emt 0:02:25]} exf5 {[%emt 0:04:54]} 39. e6 {[%emt 0:00:46]} Qa1 {[%emt 0:00:07]} 40. exf7 {[%emt 0:01:06]} Rh1+ {[%emt 0:00:28]} 41. Kg2 {[%emt 0:30:06]} Nf4+ {[%emt 0:30:24]} 42. gxf4 {[%emt 0:00:00]} Qg1+ {[%emt 0:00:00]} 43. Kf3 {[%emt 0:00:00]} Rh3# {[%emt 0:00:20]} 0-1